fUST/lending_fUST_20260507
["ID","MTS","AMOUNT","RATE_DAILY","PERIOD"]
[421791838,1778163039000,-154.55979225,0.00010684,2]
[421791859,1778163039000,-500.0,0.00010958,2]
[421791840,1778163039000,-500.0,0.00010684,2]
[421791841,1778163039000,-500.0,0.00010684,2]
[421791836,1778163039000,-500.0,0.00010684,2]
[421791843,1778163039000,-647.89399347,0.00010684,2]
[421791847,1778163039000,-151.5,0.00010684,2]
[421791845,1778163039000,-590.31882123,0.00010684,2]
[421791855,1778163039000,-500.0,0.00010958,2]
[421791849,1778163039000,-500.0,0.00010684,2]
[421791863,1778163039000,-500.0,0.00010958,2]
[421791834,1778163039000,-151.5,0.00010684,2]
[421791832,1778163039000,-500.0,0.00010684,2]
[421791809,1778163039000,-500.0,0.00010684,2]
[421791827,1778163039000,-191.35889963,0.00010684,2]
[421791851,1778163039000,-200.74842933,0.00010857,2]
[421791801,1778163039000,-600.68132839,0.00010684,2]
[421791805,1778163039000,-500.0,0.00010684,2]
[421791803,1778163039000,-500.0,0.00010684,2]
[421791797,1778163039000,-85.72091133,0.00010684,2]
[421791799,1778163039000,-500.0,0.00010684,2]
[421791825,1778163039000,-151.5,0.00010684,2]
[421791807,1778163039000,-500.0,0.00010684,2]
[421791813,1778163039000,-500.0,0.00010684,2]
[421791815,1778163039000,-500.0,0.00010684,2]
[421791817,1778163039000,-500.0,0.00010684,2]
[421791819,1778163039000,-500.0,0.00010684,2]
[421791821,1778163039000,-316.0,0.00010684,2]
[421791824,1778163039000,-205.08559071,0.00010684,2]
[421791811,1778163039000,-530.32897843,0.00010684,2]
[421791857,1778163039000,-500.0,0.00010958,2]
[421791885,1778163039000,-500.0,0.00010958,2]
[421791861,1778163039000,-500.0,0.00010958,2]
[421791924,1778163039000,-4781.06648644,0.00010959,2]
[421791922,1778163039000,-500.0,0.00010958,2]
[421791920,1778163039000,-500.0,0.00010958,2]
[421791918,1778163039000,-500.0,0.00010958,2]
[421791853,1778163039000,-339.84,0.00010958,2]
[421791916,1778163039000,-500.0,0.00010958,2]
[421791914,1778163039000,-500.0,0.00010958,2]
[421791912,1778163039000,-500.0,0.00010958,2]
[421791906,1778163039000,-500.0,0.00010958,2]
[421791900,1778163039000,-794.05,0.00010958,2]
[421791910,1778163039000,-500.0,0.00010958,2]
[421791902,1778163039000,-500.0,0.00010958,2]
[421791908,1778163039000,-505.68483934,0.00010958,2]
[421791898,1778163039000,-500.0,0.00010958,2]
[421791904,1778163039000,-500.0,0.00010958,2]
[421791917,1778163039000,-500.0,0.00010958,2]
[421791892,1778163039000,-571.0,0.00010958,2]
[421791896,1778163039000,-876.07,0.00010958,2]
[421791865,1778163039000,-1087.8104,0.00010958,2]
[421791869,1778163039000,-500.0,0.00010958,2]
[421791867,1778163039000,-657.34,0.00010958,2]
[421791878,1778163039000,-646.55,0.00010958,2]
[421791871,1778163039000,-4013.47,0.00010958,2]
[421791880,1778163039000,-500.0,0.00010958,2]
[421791893,1778163039000,-500.0,0.00010958,2]
[421791883,1778163039000,-1639.61,0.00010958,2]
[421791876,1778163039000,-500.0,0.00010958,2]
[421791881,1778163039000,-3148.29,0.00010958,2]
[421791887,1778163039000,-505.3,0.00010958,2]
[421791890,1778163039000,-500.0,0.00010958,2]
[421791874,1778163039000,-500.0,0.00010958,2]
[421792085,1778163047000,-2275.95518625,0.00010959,2]
[421792080,1778163047000,-1316.81261667,0.00010959,2]
[421792109,1778163429000,-300.0,0.00010065,2]
[421792110,1778163429000,-758.60953133,0.00010066,2]
[421792111,1778163429000,-1706.8714455,0.00010066,2]
[421792112,1778163429000,-3034.43812533,0.00010066,2]
[421792113,1778163429000,-4741.30957083,0.00010066,2]
[421792114,1778163429000,-6827.48578199,0.00010066,2]
[421792116,1778163429000,-5000.0,0.00010177,2]
[421792118,1778163429000,-4418.67882041,0.0001028,2]
[421792119,1778163429000,-300.0,0.00010594,2]
[421792117,1778163429000,-424.16664611,0.00010178,2]
[421792121,1778163429000,-300.0,0.00010806,2]
[421792120,1778163429000,-3678.1534154,0.00010595,2]
[421792123,1778163429000,-300.0,0.00010806,2]
[421792124,1778163429000,-58.61287104,0.00010806,2]
[421792115,1778163429000,-9283.67379206,0.00010066,2]
[421792122,1778163429000,-300.0,0.00010806,2]
[421792129,1778163694000,2972876.478106,0.00019178,120]
[421792131,1778163894000,460.0,0.00019178,120]
[421792135,1778164039000,20015.0,8.16e-05,2]
[421792136,1778164165000,10000.0,8.16e-05,2]
[421792222,1778164235000,-5000.0,8.979e-05,2]
[421792221,1778164235000,-1953.6695952,8.889e-05,2]
[421792223,1778164236000,-426.79771706,9.302e-05,2]
[421792225,1778164236000,-10000.0,9.442e-05,2]
[421792226,1778164236000,-198.83072639,9.63e-05,2]
[421792224,1778164236000,-300.0,9.441e-05,2]
[421792228,1778164236000,-180.50940029,9.63e-05,2]
[421792227,1778164236000,-101.16927361,9.63e-05,2]
[421792229,1778164236000,-119.49059971,9.63e-05,2]
[421792238,1778164236000,-69.03427774,9.63e-05,2]
[421792231,1778164236000,-300.0,9.63e-05,2]
[421792233,1778164236000,-300.0,9.63e-05,2]
[421792232,1778164236000,-300.0,9.63e-05,2]
[421792235,1778164236000,-199.28648145,9.63e-05,2]
[421792234,1778164236000,-300.0,9.63e-05,2]
[421792236,1778164236000,-100.71351855,9.63e-05,2]
[421792237,1778164236000,-300.0,9.63e-05,2]
[421792230,1778164236000,-300.0,9.63e-05,2]
[421792275,1778164238000,-477.0,0.00010684,2]
[421792274,1778164238000,-477.0,0.00010684,2]
[421792266,1778164238000,-161.57,0.00010005,2]
[421792263,1778164238000,-600.0,9.822e-05,2]
[421792267,1778164238000,-525.53925808,0.00010368,2]
[421792264,1778164238000,-152.0,0.0001,7]
[421792265,1778164238000,-152.0,0.0001,7]
[421792258,1778164238000,-300.0,9.63e-05,2]
[421792261,1778164238000,-300.0,9.63e-05,2]
[421792260,1778164238000,-187.90072226,9.63e-05,2]
[421792259,1778164238000,-112.09927774,9.63e-05,2]
[421792257,1778164238000,-300.0,9.63e-05,2]
[421792256,1778164238000,-230.96572226,9.63e-05,2]
[421792276,1778164238000,-477.0,0.00010684,2]
[421792262,1778164238000,-300.0,9.63e-05,2]
[421792270,1778164238000,-477.0,0.00010684,2]
[421792269,1778164238000,-420.0,0.00010385,2]
[421792277,1778164238000,-477.0,0.00010684,2]
[421792284,1778164238000,-477.0,0.00010684,2]
[421792273,1778164238000,-477.0,0.00010684,2]
[421792281,1778164238000,-477.0,0.00010684,2]
[421792283,1778164238000,-477.0,0.00010684,2]
[421792282,1778164238000,-477.0,0.00010684,2]
[421792280,1778164238000,-477.0,0.00010684,2]
[421792286,1778164238000,-477.0,0.00010684,2]
[421792278,1778164238000,-477.0,0.00010684,2]
[421792279,1778164238000,-477.0,0.00010684,2]
[421792289,1778164238000,-477.0,0.00010684,2]
[421792288,1778164238000,-477.0,0.00010684,2]
[421792287,1778164238000,-477.0,0.00010684,2]
[421792271,1778164238000,-477.0,0.00010684,2]
[421792285,1778164238000,-477.0,0.00010684,2]
[421792268,1778164238000,-2797.29824194,0.00010368,2]
[421792272,1778164238000,-477.0,0.00010684,2]
[421792312,1778164239000,-619.61,0.00010958,2]
[421792292,1778164239000,-477.0,0.00010684,2]
[421792299,1778164239000,-302.13726089,0.00010858,2]
[421792304,1778164239000,-500.0,0.00010958,2]
[421792305,1778164239000,-500.0,0.00010958,2]
[421792303,1778164239000,-500.0,0.00010958,2]
[421792302,1778164239000,-533.59,0.00010958,2]
[421792301,1778164239000,-1087.8104,0.00010958,2]
[421792291,1778164239000,-477.0,0.00010684,2]
[421792308,1778164239000,-629.95,0.00010958,2]
[421792307,1778164239000,-500.0,0.00010958,2]
[421792310,1778164239000,-500.0,0.00010958,2]
[421792298,1778164239000,-8468.73395193,0.00010858,2]
[421792290,1778164239000,-477.0,0.00010684,2]
[421792309,1778164239000,-500.0,0.00010958,2]
[421792293,1778164239000,-491.86174561,0.00010684,2]
[421792306,1778164239000,-500.0,0.00010958,2]
[421792296,1778164239000,-160.0,0.000108,2]
[421792300,1778164239000,-6861.5074535,0.00010864,2]
[421792311,1778164239000,-3846.24,0.00010958,2]
[421792313,1778164239000,-500.0,0.00010958,2]
[421792295,1778164239000,-6341.17056604,0.00010717,2]
[421792297,1778164239000,-720.0,0.00010804,2]
[421792294,1778164239000,-500.0,0.00010684,2]
[421792315,1778164239000,-500.0,0.00010958,2]
[421792317,1778164239000,-500.0,0.00010958,2]
[421792314,1778164239000,-3017.11,0.00010958,2]
[421792341,1778164239000,-331.28906032,0.00011232,2]
[421792340,1778164239000,-500.0,0.00011232,2]
[421792338,1778164239000,-6633.62445656,0.00011065,2]
[421792339,1778164239000,-1489.3212,0.00011232,2]
[421792337,1778164239000,-3079.16649534,0.00011019,2]
[421792332,1778164239000,-500.0,0.00010958,2]
[421792333,1778164239000,-15000.0,0.00010959,2]
[421792327,1778164239000,-500.0,0.00010958,2]
[421792334,1778164239000,-419.00555442,0.00011019,2]
[421792335,1778164239000,-1676.02221766,0.00011019,2]
[421792331,1778164239000,-500.0,0.00010958,2]
[421792325,1778164239000,-500.0,0.00010958,2]
[421792336,1778164239000,-688.11244441,0.00011019,2]
[421792330,1778164239000,-640.88,0.00010958,2]
[421792328,1778164239000,-500.0,0.00010958,2]
[421792326,1778164239000,-500.0,0.00010958,2]
[421792324,1778164239000,-760.96,0.00010958,2]
[421792323,1778164239000,-500.0,0.00010958,2]
[421792319,1778164239000,-500.0,0.00010958,2]
[421792318,1778164239000,-547.21,0.00010958,2]
[421792322,1778164239000,-839.57,0.00010958,2]
[421792316,1778164239000,-1571.29,0.00010958,2]
[421792320,1778164239000,-500.0,0.00010958,2]
[421792321,1778164239000,-500.0,0.00010958,2]
[421792329,1778164239000,-500.0,0.00010958,2]
[421792348,1778164241000,-168.71093968,0.00011232,2]
[421792349,1778164241000,-364.50084058,0.00011232,2]
[421792350,1778164241000,-135.49915942,0.00011232,2]
[421792353,1778164241000,-629.95,0.00011232,2]
[421792352,1778164241000,-500.0,0.00011232,2]
[421792354,1778164241000,-193.41888985,0.00011232,2]
[421792351,1778164241000,-347.44,0.00011232,2]
[421792363,1778164246000,-500.0,0.00011063,2]
[421792362,1778164246000,-5000.0,0.00010952,2]
[421792364,1778164246000,-318.79840182,0.00011063,2]
[421792365,1778164246000,-500.0,0.00011063,2]
[421792361,1778164246000,-160.0,0.000109,2]
[421792375,1778164247000,-500.0,0.00011063,2]
[421792379,1778164247000,-253.26987397,0.00011063,2]
[421792376,1778164247000,-500.0,0.00011063,2]
[421792387,1778164247000,-3846.24,0.00011232,2]
[421792378,1778164247000,-500.0,0.00011063,2]
[421792385,1778164247000,-306.58111015,0.00011232,2]
[421792383,1778164247000,-500.0,0.00011063,2]
[421792386,1778164247000,-500.0,0.00011232,2]
[421792377,1778164247000,-500.0,0.00011063,2]
[421792382,1778164247000,-500.0,0.00011063,2]
[421792371,1778164247000,-500.0,0.00011063,2]
[421792380,1778164247000,-500.0,0.00011063,2]
[421792381,1778164247000,-500.0,0.00011063,2]
[421792373,1778164247000,-500.0,0.00011063,2]
[421792372,1778164247000,-480.26392943,0.00011063,2]
[421792369,1778164247000,-500.0,0.00011063,2]
[421792366,1778164247000,-310.79520762,0.00011063,2]
[421792367,1778164247000,-500.0,0.00011063,2]
[421792368,1778164247000,-500.0,0.00011063,2]
[421792370,1778164247000,-500.0,0.00011063,2]
[421792396,1778164247000,-500.0,0.00011232,2]
[421792374,1778164247000,-500.0,0.00011063,2]
[421792395,1778164247000,-500.0,0.00011232,2]
[421792402,1778164247000,-500.0,0.00011232,2]
[421792393,1778164247000,-547.21,0.00011232,2]
[421792384,1778164247000,-458.64321152,0.00011063,2]
[421792409,1778164247000,-503.62130613,0.00011302,2]
[421792410,1778164247000,-2181.90823809,0.00011414,2]
[421792406,1778164247000,-442.0,0.00011286,2]
[421792405,1778164247000,-500.0,0.00011232,2]
[421792404,1778164247000,-500.0,0.00011232,2]
[421792408,1778164247000,-185.0,0.00011286,2]
[421792407,1778164247000,-741.0,0.00011286,2]
[421792412,1778164247000,-714.78677423,0.00011414,2]
[421792401,1778164247000,-500.0,0.00011232,2]
[421792411,1778164247000,-355.3,0.00011414,2]
[421792400,1778164247000,-500.0,0.00011232,2]
[421792399,1778164247000,-760.96,0.00011232,2]
[421792403,1778164247000,-500.0,0.00011232,2]
[421792397,1778164247000,-839.57,0.00011232,2]
[421792392,1778164247000,-500.0,0.00011232,2]
[421792390,1778164247000,-500.0,0.00011232,2]
[421792391,1778164247000,-1571.29,0.00011232,2]
[421792394,1778164247000,-500.0,0.00011232,2]
[421792388,1778164247000,-619.61,0.00011232,2]
[421792389,1778164247000,-3017.11,0.00011232,2]
[421792398,1778164247000,-500.0,0.00011232,2]
[421792450,1778164250000,-184.55,0.00011506,2]
[421792449,1778164250000,-500.0,0.00011506,2]
[421792455,1778164250000,-160.0,0.00011726,2]
[421792446,1778164250000,-500.0,0.00011506,2]
[421792448,1778164250000,-500.0,0.00011506,2]
[421792454,1778164250000,-160.0,0.00011726,2]
[421792452,1778164250000,-160.0,0.00011726,2]
[421792447,1778164250000,-240.33,0.00011506,2]
[421792451,1778164250000,-500.0,0.00011506,2]
[421792459,1778164250000,-500.0,0.0001174,2]
[421792456,1778164250000,-200.0,0.00011732,2]
[421792458,1778164250000,-500.0,0.0001174,2]
[421792460,1778164250000,-500.0,0.0001174,2]
[421792461,1778164250000,-500.0,0.0001174,2]
[421792463,1778164250000,-500.0,0.0001174,2]
[421792462,1778164250000,-500.0,0.0001174,2]
[421792466,1778164250000,-500.0,0.0001174,2]
[421792465,1778164250000,-500.0,0.0001174,2]
[421792444,1778164250000,-760.96,0.00011506,2]
[421792453,1778164250000,-161.57704075,0.00011726,2]
[421792445,1778164250000,-500.0,0.00011506,2]
[421792442,1778164250000,-839.57,0.00011506,2]
[421792437,1778164250000,-500.0,0.00011506,2]
[421792423,1778164250000,-500.0,0.00011232,2]
[421792425,1778164250000,-587.0,0.00011424,2]
[421792422,1778164250000,-500.0,0.00010958,2]
[421792424,1778164250000,-3627.53821149,0.00011414,2]
[421792426,1778164250000,-413.503,0.00011506,2]
[421792427,1778164250000,-500.0,0.00011506,2]
[421792429,1778164250000,-500.0,0.00011506,2]
[421792428,1778164250000,-500.0,0.00011506,2]
[421792430,1778164250000,-500.0,0.00011506,2]
[421792443,1778164250000,-500.0,0.00011506,2]
[421792431,1778164250000,-500.0,0.00011506,2]
[421792441,1778164250000,-500.0,0.00011506,2]
[421792432,1778164250000,-3846.24,0.00011506,2]
[421792436,1778164250000,-1571.29,0.00011506,2]
[421792438,1778164250000,-547.21,0.00011506,2]
[421792440,1778164250000,-500.0,0.00011506,2]
[421792434,1778164250000,-3017.11,0.00011506,2]
[421792433,1778164250000,-619.61,0.00011506,2]
[421792435,1778164250000,-500.0,0.00011506,2]
[421792439,1778164250000,-500.0,0.00011506,2]
[421792467,1778164250000,-500.0,0.0001174,2]
[421792457,1778164250000,-155.0,0.00011739,2]
[421792464,1778164250000,-500.0,0.0001174,2]
[421792470,1778164250000,-500.0,0.0001174,2]
[421792493,1778164250000,-500.0,0.0001174,2]
[421792492,1778164250000,-500.0,0.0001174,2]
[421792496,1778164250000,-500.0,0.0001174,2]
[421792497,1778164250000,-500.0,0.0001174,2]
[421792498,1778164250000,-500.0,0.0001174,2]
[421792499,1778164250000,-500.0,0.0001174,2]
[421792501,1778164250000,-640.83,0.0001174,2]
[421792500,1778164250000,-500.0,0.0001174,2]
[421792502,1778164250000,-500.0,0.00011759,2]
[421792495,1778164250000,-500.0,0.0001174,2]
[421792512,1778164250000,-156.48518869,0.00011759,2]
[421792504,1778164250000,-500.0,0.00011759,2]
[421792468,1778164250000,-500.0,0.0001174,2]
[421792505,1778164250000,-500.0,0.00011759,2]
[421792508,1778164250000,-500.0,0.00011759,2]
[421792506,1778164250000,-180.12980774,0.00011759,2]
[421792507,1778164250000,-500.0,0.00011759,2]
[421792509,1778164250000,-500.0,0.00011759,2]
[421792511,1778164250000,-325.02840758,0.00011759,2]
[421792510,1778164250000,-174.97159242,0.00011759,2]
[421792513,1778164250000,-104.24006807,0.00011759,2]
[421792494,1778164250000,-500.0,0.0001174,2]
[421792503,1778164250000,-500.0,0.00011759,2]
[421792484,1778164250000,-500.0,0.0001174,2]
[421792471,1778164250000,-500.0,0.0001174,2]
[421792472,1778164250000,-500.0,0.0001174,2]
[421792469,1778164250000,-500.0,0.0001174,2]
[421792473,1778164250000,-500.0,0.0001174,2]
[421792477,1778164250000,-500.0,0.0001174,2]
[421792478,1778164250000,-500.0,0.0001174,2]
[421792476,1778164250000,-500.0,0.0001174,2]
[421792475,1778164250000,-500.0,0.0001174,2]
[421792480,1778164250000,-500.0,0.0001174,2]
[421792474,1778164250000,-500.0,0.0001174,2]
[421792489,1778164250000,-500.0,0.0001174,2]
[421792479,1778164250000,-500.0,0.0001174,2]
[421792482,1778164250000,-500.0,0.0001174,2]
[421792481,1778164250000,-500.0,0.0001174,2]
[421792483,1778164250000,-500.0,0.0001174,2]
[421792485,1778164250000,-500.0,0.0001174,2]
[421792488,1778164250000,-500.0,0.0001174,2]
[421792487,1778164250000,-500.0,0.0001174,2]
[421792486,1778164250000,-500.0,0.0001174,2]
[421792490,1778164250000,-500.0,0.0001174,2]
[421792491,1778164250000,-500.0,0.0001174,2]
[421792514,1778164318000,10000.0,8.16e-05,2]
[421792516,1778165193000,1577.56278697,0.00019,120]
[421792517,1778165200000,1000.0,0.00019,120]
[421792518,1778165207000,500.0,0.00019,120]
[421792519,1778165214000,1953.6695952,8.16e-05,2]
[421792520,1778165229000,3356.86876676,8.16e-05,2]
[421792522,1778165407000,6889.0,0.00019178,120]
[421792565,1778165434000,-151.0,8.2e-05,2]
[421792616,1778165434000,-416.34523754,8.948e-05,2]
[421792610,1778165434000,-300.0,8.363e-05,2]
[421792612,1778165434000,-300.0,8.363e-05,2]
[421792614,1778165434000,-300.0,8.363e-05,2]
[421792608,1778165434000,-300.0,8.363e-05,2]
[421792596,1778165434000,-300.0,8.363e-05,2]
[421792594,1778165434000,-300.0,8.363e-05,2]
[421792592,1778165434000,-300.0,8.363e-05,2]
[421792590,1778165434000,-300.0,8.363e-05,2]
[421792585,1778165434000,-141.31959154,8.363e-05,2]
[421792588,1778165434000,-158.68040846,8.363e-05,2]
[421792579,1778165434000,-151.0,8.2e-05,2]
[421792577,1778165434000,-151.0,8.2e-05,2]
[421792573,1778165434000,-151.0,8.2e-05,2]
[421792581,1778165434000,-151.0,8.2e-05,2]
[421792583,1778165434000,-300.0,8.363e-05,2]
[421792571,1778165434000,-151.0,8.2e-05,2]
[421792563,1778165434000,-151.0,8.2e-05,2]
[421792561,1778165434000,-300.0,8.199e-05,2]
[421792618,1778165434000,-362.0,9.019e-05,2]
[421792569,1778165434000,-151.0,8.2e-05,2]
[421792567,1778165434000,-151.0,8.2e-05,2]
[421792575,1778165434000,-151.0,8.2e-05,2]
[421792619,1778165434000,-3258.182225,0.00010348,2]
[421792637,1778165434000,-698.15084257,0.00010958,2]
[421792598,1778165434000,-300.0,8.363e-05,2]
[421792600,1778165434000,-300.0,8.363e-05,2]
[421792635,1778165434000,-500.0,0.00010958,2]
[421792639,1778165434000,-500.0,0.00010958,2]
[421792636,1778165434000,-136.81518035,0.00010958,2]
[421792640,1778165434000,-251.04314355,0.00010958,2]
[421792634,1778165434000,-500.0,0.00010958,2]
[421792638,1778165434000,-539.91397708,0.00010958,2]
[421792633,1778165434000,-2639.97,0.00010958,2]
[421792630,1778165434000,-542.16,0.00010958,2]
[421792625,1778165434000,-577.45,0.00010958,2]
[421792627,1778165434000,-500.0,0.00010958,2]
[421792629,1778165434000,-3365.46,0.00010958,2]
[421792623,1778165434000,-500.0,0.00010958,2]
[421792626,1778165434000,-500.0,0.00010958,2]
[421792624,1778165434000,-500.0,0.00010958,2]
[421792622,1778165434000,-500.0,0.00010958,2]
[421792632,1778165434000,-268.81026001,0.00010958,2]
[421792620,1778165434000,-491.2873803,0.00010948,2]
[421792631,1778165434000,-231.18973999,0.00010958,2]
[421792621,1778165434000,-500.0,0.00010958,2]
[421792605,1778165434000,-300.0,8.363e-05,2]
[421792603,1778165434000,-300.0,8.363e-05,2]
[421792602,1778165434000,-300.0,8.363e-05,2]
[421792628,1778165434000,-500.0,0.00010958,2]
[421792682,1778165438000,-734.62,0.00010958,2]
[421792680,1778165438000,-500.0,0.00010958,2]
[421792679,1778165438000,-248.95685645,0.00010958,2]
[421792685,1778165438000,-500.0,0.00010958,2]
[421792683,1778165438000,-552.93692791,0.00010958,2]
[421792684,1778165438000,-112.90307209,0.00010958,2]
[421792686,1778165438000,-229.08,0.00010958,2]
[421792681,1778165438000,-500.0,0.00010958,2]
[421792687,1778165439000,-500.0,0.00010958,2]
[421792688,1778165439000,-500.0,0.00010958,2]
[421792690,1778165439000,-23.69787663,0.00010958,2]
[421792692,1778165439000,-476.67512514,0.00010958,2]
[421792691,1778165439000,-476.30212337,0.00010958,2]
[421792689,1778165439000,-597.80526692,0.00010958,2]
[421792693,1778165439000,-23.32487486,0.00010958,2]
[421792696,1778165439000,-8875.0,0.0001113,2]
[421792695,1778165439000,-7067.90971222,0.00010959,2]
[421792698,1778165439000,-250.36331933,0.00011131,2]
[421792697,1778165439000,-500.0,0.0001113,2]
[421792699,1778165439000,-500.0,0.00011131,2]
[421792701,1778165439000,-4488.93839314,0.00011132,2]
[421792702,1778165439000,-10298.678556,0.00011132,2]
[421792700,1778165439000,-162.07146795,0.00011131,2]
[421792694,1778165439000,-7932.09028778,0.00010959,2]
[421792716,1778165441000,-1019.05201729,0.00011132,2]
[421792718,1778165441000,-7909.01872154,0.00011132,2]
[421792717,1778165441000,-1258.43671265,0.00011132,2]
[421792719,1778165441000,-523.75236559,0.00011132,2]
[421792722,1778165441000,-80150.0,0.00011132,2]
[421792720,1778165441000,-2622.24763602,0.00011132,2]
[421792721,1778165441000,-500.0,0.00011132,2]
[421792748,1778165444000,-5808.49999837,0.00011132,2]
[421792749,1778165444000,-468.942,0.00011132,2]
[421792747,1778165444000,-285.0,0.00011132,2]
[421792746,1778165444000,-3256.23330091,0.00011132,2]
[421792741,1778165444000,-813.5,0.00011132,2]
[421792743,1778165444000,-1179.67946753,0.00011132,2]
[421792792,1778165447000,-500.0,0.00011232,2]
[421792793,1778165447000,-500.0,0.00011232,2]
[421792791,1778165447000,-500.0,0.00011232,2]
[421792787,1778165447000,-734.62,0.00011232,2]
[421792789,1778165447000,-500.0,0.00011232,2]
[421792782,1778165447000,-1374.88,0.00011232,2]
[421792790,1778165447000,-500.0,0.00011232,2]
[421792795,1778165447000,-647.0,0.00011335,2]
[421792798,1778165447000,-644.50357981,0.00011502,2]
[421792797,1778165447000,-500.0,0.00011502,2]
[421792794,1778165447000,-2215.0,0.00011335,2]
[421792785,1778165447000,-500.0,0.00011232,2]
[421792799,1778165447000,-500.0,0.00011502,2]
[421792803,1778165447000,-310.63562985,0.00011502,2]
[421792800,1778165447000,-500.0,0.00011502,2]
[421792802,1778165447000,-189.36437015,0.00011502,2]
[421792801,1778165447000,-500.0,0.00011502,2]
[421792796,1778165447000,-330.802,0.000115,2]
[421792788,1778165447000,-665.84,0.00011232,2]
[421792781,1778165447000,-500.0,0.00011232,2]
[421792783,1778165447000,-500.0,0.00011232,2]
[421792765,1778165447000,-5000.0,0.00011021,2]
[421792766,1778165447000,-3022.5,0.00011132,2]
[421792767,1778165447000,-38087.13751774,0.00011132,2]
[421792768,1778165447000,-600.0,0.00011176,2]
[421792769,1778165447000,-500.0,0.00011232,2]
[421792770,1778165447000,-500.0,0.00011232,2]
[421792771,1778165447000,-500.0,0.00011232,2]
[421792776,1778165447000,-3365.46,0.00011232,2]
[421792773,1778165447000,-577.45,0.00011232,2]
[421792777,1778165447000,-542.16,0.00011232,2]
[421792779,1778165447000,-2639.97,0.00011232,2]
[421792772,1778165447000,-500.0,0.00011232,2]
[421792774,1778165447000,-500.0,0.00011232,2]
[421792780,1778165447000,-500.0,0.00011232,2]
[421792775,1778165447000,-500.0,0.00011232,2]
[421792804,1778165447000,-500.0,0.00011502,2]
[421792784,1778165447000,-500.0,0.00011232,2]
[421792786,1778165447000,-500.0,0.00011232,2]
[421792805,1778165447000,-500.0,0.00011502,2]
[421792778,1778165447000,-500.0,0.00011232,2]
[421792808,1778165447000,-500.0,0.00011502,2]
[421792829,1778165447000,-350.47726935,0.00011506,2]
[421792831,1778165447000,-665.84,0.00011506,2]
[421792832,1778165447000,-500.0,0.00011506,2]
[421792833,1778165447000,-500.0,0.00011506,2]
[421792836,1778165447000,-500.0,0.00011506,2]
[421792835,1778165447000,-500.0,0.00011506,2]
[421792834,1778165447000,-500.0,0.00011506,2]
[421792837,1778165447000,-2236.56798181,0.00011525,2]
[421792830,1778165447000,-734.62,0.00011506,2]
[421792838,1778165447000,-5787.5929438,0.00011538,2]
[421792841,1778165447000,-160.0,0.00011712,2]
[421792842,1778165447000,-161.57704075,0.00011712,2]
[421792843,1778165447000,-160.0,0.00011712,2]
[421792845,1778165447000,-500.0,0.0001174,2]
[421792847,1778165447000,-46204.40261382,0.0001176,2]
[421792844,1778165447000,-160.0,0.00011712,2]
[421792846,1778165447000,-5068.32987934,0.0001176,2]
[421792809,1778165447000,-500.0,0.00011502,2]
[421792839,1778165447000,-731.0138524,0.00011538,2]
[421792827,1778165447000,-500.0,0.00011506,2]
[421792840,1778165447000,-1872.6235976,0.00011538,2]
[421792826,1778165447000,-500.0,0.00011506,2]